bitfinex/quotes_BTCUSD_20251031
["timestamp","ask_amount","ask_price","bid_price","bid_amount"]
[1761927547078,0.64643242,110050.0,110040.0,0.23298079]
[1761927547282,0.22036192,110050.0,110040.0,0.20998079]
[1761927547515,0.64643242,110050.0,110040.0,0.20998079]
[1761927547718,0.65820242,110050.0,110040.0,0.20998079]
[1761927548370,0.68233242,110050.0,110040.0,0.0127987]
[1761927548730,0.65820242,110050.0,110040.0,0.0167387]
[1761927548952,0.65820242,110050.0,110040.0,0.20998079]
[1761927549185,0.65820242,110050.0,110040.0,0.23298079]
[1761927549592,0.63022242,110050.0,110040.0,0.23298079]
[1761927549798,0.66068449,110050.0,110040.0,0.20998079]
[1761927550024,0.47594892,110050.0,110040.0,0.20998079]
[1761927550298,0.63826814,110050.0,110040.0,0.20998079]
[1761927550951,0.62205814,110050.0,110040.0,0.23298079]
[1761927551177,0.65003814,110050.0,110040.0,0.0282287]
[1761927551431,0.65003814,110050.0,110040.0,0.20998079]
[1761927551660,0.67416814,110050.0,110040.0,0.0013087]
[1761927552092,0.62205814,110050.0,110040.0,0.23298079]
[1761927552601,0.01425207,110050.0,110040.0,0.23298079]
[1761927553525,0.44032257,110050.0,110040.0,0.23298079]
[1761927553738,0.01425207,110050.0,110040.0,0.23298079]
[1761927554216,0.01425207,110050.0,110040.0,0.23198079]
[1761927554466,0.01525207,110050.0,110040.0,0.23498079]
[1761927555118,0.62305814,110050.0,110040.0,0.23498079]
[1761927555784,0.44132257,110050.0,110040.0,0.23498079]
[1761927556615,0.01525207,110050.0,110040.0,0.23498079]
[1761927556853,0.44132257,110050.0,110040.0,0.23498079]
[1761927557074,0.62305814,110050.0,110040.0,0.0532287]
[1761927557295,0.67487814,110050.0,110040.0,0.0033087]
[1761927558018,0.67487814,110050.0,110040.0,0.0197087]
[1761927558878,0.67487814,110050.0,110040.0,0.0033087]
[1761927559097,0.67487814,110050.0,110040.0,0.0197087]
[1761927559304,0.67487814,110050.0,110040.0,0.23595079]
[1761927559305,0.65051814,110050.0,110040.0,0.23595079]
[1761927559934,0.65051814,110050.0,110040.0,0.0541987]
[1761927560150,0.65051814,110050.0,110040.0,0.0310287]
[1761927560583,0.63516814,110050.0,110040.0,0.0541987]
[1761927560792,0.62305814,110050.0,110040.0,0.23595079]
[1761927561426,0.67464814,110050.0,110040.0,0.0033087]
[1761927561644,1.12014021,110050.0,110040.0,0.0033087]
[1761927561847,1.12274621,110050.0,110040.0,0.0033087]
[1761927562308,0.69667571,110050.0,110040.0,0.0033087]
[1761927564433,0.51494014,110050.0,110040.0,0.0033087]
[1761927564651,0.02042157,110050.0,110040.0,0.22398079]
[1761927564860,0.4270705,110050.0,110040.0,0.22398079]
[1761927565085,0.60880607,110050.0,110040.0,0.22398079]
[1761927565976,0.62460607,110050.0,110040.0,0.0190587]
[1761927566179,0.64401425,110050.0,110040.0,0.0190587]
[1761927566605,0.66767425,110050.0,110040.0,0.0033087]
[1761927566967,0.64401425,110050.0,110040.0,0.0190587]
[1761927567391,0.66767425,110050.0,110040.0,0.0190587]
[1761927568039,0.66767425,110050.0,110040.0,0.0033087]
[1761927569535,0.68452048,110050.0,110040.0,0.0033087]
[1761927571250,0.69294246,110050.0,110040.0,0.0033087]
[1761927572325,0.68452048,110050.0,110040.0,0.0033087]
[1761927573452,0.68452048,110050.0,110040.0,0.0190587]
[1761927574264,0.64506048,110050.0,110040.0,0.22398079]
[1761927574475,0.64506048,110050.0,110040.0,0.23466079]
[1761927574694,0.64506048,110050.0,110040.0,0.0529087]
[1761927574918,0.66086048,110050.0,110040.0,0.0529087]
[1761927575362,0.21898998,110050.0,110040.0,0.0529087]
[1761927575587,0.64506048,110050.0,110040.0,0.0529087]
[1761927575805,0.67299048,110050.0,110040.0,0.0297387]
[1761927577558,0.65614425,110050.0,110040.0,0.0297387]
[1761927578622,0.64246678,110050.0,110040.0,0.23466079]
[1761927579467,0.64246678,110050.0,110040.0,0.0529087]
[1761927579693,0.65826678,110050.0,110040.0,0.0297387]
[1761927579910,0.65826678,110050.0,110040.0,0.0294287]
[1761927580154,0.69405678,110050.0,110040.0,0.0294287]
[1761927580604,0.67039678,110050.0,110040.0,0.0294287]
[1761927580841,0.67039678,110050.0,110040.0,0.21118079]
[1761927581045,0.67039678,110050.0,110040.0,0.0294287]
[1761927581271,0.69405678,110050.0,110040.0,0.0136787]
[1761927581498,0.69405678,110050.0,110040.0,0.0294287]
[1761927581739,0.67039678,110050.0,110040.0,0.0294287]
[1761927582877,0.70247282,110050.0,110040.0,0.0029987]
[1761927583091,0.67881282,110050.0,110040.0,0.0294287]
[1761927583344,0.70247282,110050.0,110040.0,0.0294287]
[1761927583799,0.67039678,110050.0,110040.0,0.0294287]
[1761927584250,0.64246678,110050.0,110040.0,0.21118079]
[1761927584462,0.64246678,110050.0,110040.0,0.23435079]
[1761927584463,0.21639628,110050.0,110040.0,0.23435079]
[1761927584674,0.64246678,110050.0,110040.0,0.23435079]
[1761927585127,0.64246678,110050.0,110040.0,0.0525987]
[1761927585935,0.65826678,110050.0,110040.0,0.0525987]
[1761927586416,0.70248782,110050.0,110040.0,0.0029987]
[1761927586832,0.7193302,110050.0,110040.0,0.0029987]
[1761927587048,1.1454007,110050.0,110040.0,0.0029987]
[1761927587250,0.7193302,110050.0,110040.0,0.0029987]
[1761927588317,0.70248782,110050.0,110040.0,0.0029987]
[1761927588737,0.71933324,110050.0,110040.0,0.0029987]
[1761927589179,0.70248782,110050.0,110040.0,0.0029987]
[1761927589395,0.71933343,110050.0,110040.0,0.0029987]
[1761927589663,0.7050809,110050.0,110040.0,0.0029987]
[1761927591132,0.6813509,110050.0,110040.0,0.0196187]
[1761927591343,0.68823529,110050.0,110040.0,0.0029987]
[1761927591571,0.70508645,110050.0,110040.0,0.0029987]
[1761927592699,0.71933945,110050.0,110040.0,0.0029987]
[1761927593521,1.05933945,110050.0,110040.0,0.0029987]
[1761927594517,1.48540995,110050.0,110040.0,0.0029987]
[1761927595413,1.05933945,110050.0,110040.0,0.0029987]
[1761927595630,4.48540995,110050.0,110040.0,0.0029987]
[1761927598888,4.51272487,110050.0,110040.0,0.0029987]
[1761927599763,4.51472487,110050.0,110040.0,0.0029987]
[1761927599954,4.54236548,110050.0,110040.0,0.0029987]
[1761927600448,4.65823998,110050.0,110040.0,0.0029987]
[1761927600677,0.5217686,110030.0,110020.0,0.0391229]
[1761927600893,3.99071728,110030.0,110020.0,0.03960415]
[1761927601109,4.01444728,110030.0,110020.0,0.03960415]
[1761927601328,4.46815839,110030.0,110020.0,0.03960415]
[1761927601562,4.52274362,110030.0,110020.0,0.03960415]
[1761927602468,4.55892601,110030.0,110020.0,0.03960415]
[1761927602686,4.55992601,110030.0,110020.0,0.03960415]
[1761927602912,4.59020274,110030.0,110020.0,1e-08]
[1761927603144,3.52380165,110010.0,110000.0,30.14195909]
[1761927603365,4.4830273,110010.0,110000.0,30.14195909]
[1761927603605,4.96226931,110010.0,110000.0,30.14195909]
[1761927604270,4.7723809,110010.0,110000.0,30.14195909]
[1761927604509,4.96618254,110010.0,110000.0,30.14195909]
[1761927604722,4.95618255,110010.0,110000.0,30.14195909]
[1761927605158,4.52751175,110010.0,110000.0,30.14195909]
[1761927605374,4.95418255,110010.0,110000.0,30.14195909]
[1761927605585,4.95718255,110010.0,110000.0,30.14195909]
[1761927605801,4.95618255,110010.0,110000.0,30.14195909]
[1761927606029,4.97044279,110010.0,110000.0,30.14195909]
[1761927606474,4.97244279,110010.0,110000.0,30.14195909]
[1761927606705,4.50758971,110010.0,110000.0,30.14195909]
[1761927606920,0.62521388,110010.0,110000.0,30.1665044]
[1761927607147,0.44341223,110010.0,110000.0,30.34832258]
[1761927607575,0.44141223,110010.0,110000.0,30.34832258]
[1761927607797,0.42715199,110010.0,110000.0,30.34832258]
[1761927607994,0.00148119,110010.0,110000.0,30.34832258]
[1761927608214,0.42815199,110010.0,110000.0,30.34832258]
[1761927608436,0.62520364,110010.0,110000.0,30.1428444]
[1761927608688,0.60895364,110010.0,110000.0,30.32466258]
[1761927608913,0.62520364,110010.0,110000.0,30.1428444]
[1761927609353,0.68507531,110010.0,110000.0,30.33166258]
[1761927610246,0.00248119,110010.0,110000.0,30.35532258]
[1761927610696,0.48702366,110010.0,110000.0,30.35532258]
[1761927610906,0.66882531,110010.0,110000.0,30.35532258]
[1761927611150,0.66682531,110010.0,110000.0,30.34832258]
[1761927611378,0.48702366,110010.0,110000.0,30.35732258]
[1761927612323,0.00248119,110010.0,110000.0,30.35732258]
[1761927612836,0.00248119,110010.0,110000.0,30.33366258]
[1761927612837,0.69714531,110010.0,110000.0,30.33366258]
[1761927614232,0.69714531,110010.0,110000.0,30.1518444]
[1761927614708,0.72087531,110010.0,110000.0,30.1518444]
[1761927616337,1.06087531,110010.0,110000.0,30.1518444]
[1761927616782,4.58987579,110010.0,110000.0,30.1518444]
[1761927617002,4.62605807,110010.0,110000.0,30.1518444]
[1761927617228,4.65392567,110010.0,110000.0,30.1518444]
[1761927617435,4.65392532,110010.0,110000.0,30.1518444]
[1761927617648,4.16738285,110010.0,110000.0,30.1428444]
[1761927617858,4.16838285,110010.0,110000.0,30.1468444]
[1761927618295,4.16738285,110010.0,110000.0,30.1428444]
[1761927618715,3.68484038,110010.0,110000.0,30.1448444]
[1761927618950,4.16938285,110010.0,110000.0,30.1448444]
[1761927621876,4.10533297,110010.0,110000.0,30.1448444]
[1761927622100,4.34843297,110010.0,110000.0,30.1448444]
[1761927622329,3.6207905,110010.0,110000.0,30.1448444]
[1761927623005,4.10533297,110010.0,110000.0,30.1448444]
[1761927624390,4.11959239,110010.0,110000.0,30.1448444]
[1761927624820,3.63504992,110010.0,110000.0,30.1448444]
[1761927625034,4.11959239,110010.0,110000.0,30.1448444]
[1761927626556,4.14380066,110010.0,110000.0,30.1448444]
[1761927627004,4.11959239,110010.0,110000.0,30.1448444]
[1761927627420,4.14380066,110010.0,110000.0,30.1448444]
[1761927628746,4.18198294,110010.0,110000.0,30.1448444]
[1761927628960,4.20931237,110010.0,110000.0,30.1448444]
[1761927629632,3.7247699,110010.0,110000.0,30.1448444]
[1761927629855,4.20731237,110010.0,110000.0,30.1448444]
[1761927630079,4.21959508,110010.0,110000.0,30.1448444]
[1761927630299,3.63504992,110010.0,110000.0,30.1448444]
[1761927630981,3.63504992,110010.0,110000.0,30.32666258]
[1761927631898,3.27131992,110010.0,110000.0,30.32666258]
[1761927632116,3.27031992,110010.0,110000.0,30.32666258]
[1761927632335,3.27740595,110010.0,110000.0,30.1448444]
[1761927632547,3.29422376,110010.0,110000.0,30.1448444]
[1761927632771,3.29322376,110010.0,110000.0,30.1428444]
[1761927632994,3.77976623,110010.0,110000.0,30.1498444]
[1761927633229,4.11976623,110010.0,110000.0,30.1498444]
[1761927633658,4.13402975,110010.0,110000.0,30.1498444]
[1761927634567,4.13402975,110010.0,110000.0,30.33166258]
[1761927634568,3.61137786,110010.0,110000.0,30.33166258]
[1761927634802,0.24305786,110010.0,110000.0,30.35479258]
[1761927635024,0.25607434,110010.0,110000.0,30.33166258]
[1761927635243,0.25107434,110010.0,110000.0,30.33060258]
[1761927635469,0.04199269,110010.0,110000.0,30.35373258]
[1761927635687,0.02719997,110010.0,110000.0,30.35373258]
[1761927635903,0.20900162,110010.0,110000.0,30.35373258]
[1761927636127,0.02719997,110010.0,110000.0,30.35373258]
[1761927636792,3.26013162,110010.0,110000.0,30.33060258]
[1761927637931,3.07832997,110010.0,110000.0,30.33060258]
[1761927638167,0.01038216,110010.0,110000.0,30.35373258]
[1761927639358,0.01425832,110020.0,110010.0,0.18180165]
[1761927639592,0.00841677,110020.0,110010.0,0.76606634]
[1761927639825,0.06039499,110050.0,110040.0,0.18175209]
[1761927639826,3.24213056,110050.0,110040.0,0.18175209]
[1761927640047,0.03950834,110050.0,110040.0,0.20750209]
[1761927640301,0.02525346,110050.0,110040.0,0.20750209]
[1761927640526,0.00841782,110050.0,110040.0,0.22863209]
[1761927640744,0.21492339,110050.0,110040.0,0.02575]
[1761927641191,0.72331586,110050.0,110030.0,0.01068]
[1761927641403,0.19710209,110040.0,110030.0,0.01068]
[1761927641609,0.19710209,110040.0,110030.0,0.1924486]
[1761927641818,0.01535,110040.0,110030.0,0.2075186]
[1761927642033,0.19115557,110050.0,110030.0,0.2306486]
[1761927642243,0.22341447,110050.0,110030.0,0.2306486]
[1761927642476,0.22441447,110050.0,110040.0,0.006]
[1761927642686,0.22440912,110050.0,110040.0,0.006]
[1761927642900,0.18175209,110040.0,110030.0,0.2155786]
[1761927643141,0.18175209,110040.0,110030.0,0.03275]
[1761927643556,0.19710209,110040.0,110030.0,0.03275]
[1761927643769,0.1817686,110030.0,110020.0,0.1817849]
[1761927643976,0.1971186,110030.0,110020.0,0.1968549]
[1761927644133,0.1971186,110030.0,110020.0,0.01507]
[1761927644353,0.69359107,110030.0,110020.0,0.01507]
[1761927644564,0.18178512,110020.0,110010.0,0.01153812]
[1761927644758,0.19713512,110020.0,110010.0,0.20840977]
[1761927644956,0.19713512,110020.0,110010.0,0.20907369]
[1761927645172,0.18178512,110020.0,110010.0,0.20907369]
[1761927645405,0.18178512,110020.0,110010.0,0.23220369]
[1761927645569,0.19713512,110020.0,110010.0,0.20907369]
[1761927646178,0.18278512,110020.0,110010.0,0.24357369]
[1761927646400,0.001,110020.0,110010.0,0.77810026]
[1761927646620,0.001,110020.0,110010.0,0.29355779]
[1761927646820,0.19358359,110030.0,110010.0,0.28355779]
[1761927647043,0.20863359,110030.0,110020.0,0.01619]
[1761927647248,0.23129359,110030.0,110010.0,0.21783977]
[1761927647453,0.20863359,110030.0,110020.0,0.19797512]
[1761927647735,0.2086286,110030.0,110020.0,0.19797512]
[1761927648391,0.2086286,110030.0,110020.0,0.19597512]
[1761927648602,0.2086286,110030.0,110020.0,0.01619]
[1761927649204,0.2332886,110030.0,110020.0,0.009]
[1761927649405,0.2332886,110030.0,110020.0,0.19078512]
[1761927649822,0.2332886,110030.0,110020.0,0.009]
[1761927650031,0.2332886,110030.0,110020.0,0.19078512]
[1761927650032,0.71783107,110030.0,110020.0,0.19078512]
[1761927650242,0.02886,110030.0,110020.0,0.20697512]
[1761927650448,0.1837686,110030.0,110020.0,0.20697512]
[1761927650655,0.1837686,110030.0,110020.0,0.23147512]
[1761927650864,0.1837686,110030.0,110020.0,0.04969]
[1761927651069,0.1837686,110030.0,110020.0,0.009]
[1761927651070,3.71783107,110030.0,110020.0,0.009]
[1761927651491,4.05783107,110030.0,110020.0,0.009]
[1761927651927,4.06623782,110030.0,110020.0,0.009]
[1761927652337,4.08560599,110030.0,110020.0,0.00944257]
[1761927652778,3.60106352,110030.0,110020.0,0.00944257]
[1761927652997,3.36977492,110030.0,110020.0,0.23191769]
[1761927653243,3.03130637,110030.0,110020.0,0.20741769]
[1761927653448,3.21107497,110030.0,110020.0,0.01663257]
[1761927653652,3.22288497,110030.0,110020.0,0.19841769]
[1761927654076,3.04111637,110030.0,110020.0,0.19841769]
[1761927654277,3.22288497,110030.0,110020.0,0.19841769]
[1761927654517,3.04111637,110030.0,110020.0,0.19841769]
[1761927654729,3.04111637,110030.0,110020.0,0.23091769]
[1761927654730,3.01525637,110030.0,110020.0,0.23091769]
[1761927655383,3.01525637,110030.0,110020.0,0.20641769]
[1761927655625,3.03030637,110030.0,110020.0,0.20641769]
[1761927655871,3.22288497,110030.0,110020.0,0.19841769]
[1761927656059,3.22488497,110030.0,110020.0,0.01144257]
[1761927656207,3.24754497,110030.0,110020.0,0.01144257]
[1761927656434,3.22488497,110030.0,110020.0,0.20941769]
[1761927656834,3.2106286,110030.0,110020.0,0.20941769]
[1761927657039,3.2332886,110030.0,110020.0,0.20941769]
[1761927657208,3.2332886,110030.0,110020.0,0.01144257]
[1761927657843,3.71783107,110030.0,110020.0,0.01144257]
[1761927659722,4.05783107,110030.0,110020.0,0.01144257]
[1761927660127,4.07208705,110030.0,110020.0,0.01144257]
[1761927660324,4.07208705,110030.0,110020.0,0.02763257]
[1761927660325,3.57330664,110030.0,110020.0,0.02763257]
[1761927660525,3.59596664,110030.0,110020.0,0.01144257]
[1761927660682,3.58754458,110030.0,110020.0,0.19322769]
[1761927660900,3.58754458,110030.0,110020.0,0.01144257]
[1761927661097,3.60694749,110030.0,110020.0,0.01144257]
[1761927661327,3.61536953,110030.0,110020.0,0.01144257]
[1761927661656,3.61536953,110030.0,110020.0,0.19322769]
[1761927661868,3.61536953,110030.0,110020.0,0.01144257]
[1761927662732,3.61536953,110030.0,110020.0,0.19322769]
[1761927663199,0.04408093,110030.0,110020.0,0.23391769]
[1761927663435,0.20644662,110030.0,110020.0,0.05213257]
[1761927663640,0.20644662,110030.0,110020.0,0.23391769]
[1761927663641,0.22584953,110030.0,110020.0,0.23391769]
[1761927664070,0.24089953,110030.0,110020.0,0.20941769]
[1761927664702,0.22584953,110030.0,110020.0,0.20941769]
[1761927664910,0.22584953,110030.0,110020.0,0.23391769]
[1761927665122,0.04408093,110030.0,110020.0,0.23391769]
[1761927665356,0.02467802,110030.0,110020.0,0.23391769]
[1761927666472,0.20644662,110030.0,110020.0,0.23391769]
[1761927666684,0.22584953,110030.0,110020.0,0.23391769]
[1761927667322,0.25270953,110030.0,110020.0,0.02763257]
[1761927667531,3.27536953,110030.0,110020.0,0.01144257]
[1761927667955,3.27536953,110030.0,110020.0,0.19322769]
[1761927668187,3.25270953,110030.0,110020.0,0.02763257]
[1761927668629,3.25270953,110030.0,110020.0,0.20941769]
[1761927669072,3.25270953,110030.0,110020.0,0.02763257]
[1761927669928,3.26959272,110030.0,110020.0,0.02763257]
[1761927670141,3.26959272,110030.0,110020.0,0.20941769]
[1761927670560,3.26959272,110030.0,110020.0,0.02763257]
[1761927670767,3.29225272,110030.0,110020.0,0.01144257]
[1761927672657,3.26959272,110030.0,110020.0,0.20941769]
[1761927672802,3.24273272,110030.0,110020.0,0.05213257]
[1761927673020,3.25270953,110030.0,110020.0,0.02763257]
[1761927673417,3.29226342,110030.0,110020.0,0.02763257]
[1761927673664,3.26960342,110030.0,110020.0,0.02763257]
[1761927674303,3.29226342,110030.0,110020.0,0.02763257]
[1761927674806,3.26960342,110030.0,110020.0,0.02763257]
[1761927675016,3.29226342,110030.0,110020.0,0.01144257]
[1761927675644,3.26960342,110030.0,110020.0,0.20941769]
[1761927675849,3.29226342,110030.0,110020.0,0.02763257]
[1761927676425,3.26960342,110030.0,110020.0,0.02763257]
[1761927676629,3.26960342,110030.0,110020.0,0.20941769]
[1761927677242,3.06097482,110030.0,110020.0,0.02763257]
[1761927677445,0.01689389,110030.0,110020.0,0.26105331]
[1761927677646,3.0,110030.0,110020.0,0.26105331]
[1761927677942,3.1817686,110030.0,110020.0,0.26105331]
[1761927678141,3.1817686,110030.0,110020.0,0.07926819]
[1761927678142,0.1817686,110030.0,110020.0,0.07926819]
[1761927678551,0.1817686,110030.0,110020.0,0.05217257]
[1761927679162,0.2082986,110030.0,110020.0,0.02763257]
[1761927679364,0.2313386,110030.0,110020.0,0.02673257]
[1761927679505,0.2082986,110030.0,110020.0,0.02673257]
[1761927679712,0.2252011,110030.0,110020.0,0.02673257]
[1761927680340,0.2313386,110030.0,110020.0,0.01144257]
[1761927680510,0.2313386,110030.0,110020.0,0.02673257]
[1761927680726,0.2082986,110030.0,110020.0,0.02673257]
[1761927681302,0.1817686,110030.0,110020.0,0.05127257]
[1761927681517,0.1968286,110030.0,110020.0,0.20851769]
[1761927681733,0.2082986,110030.0,110020.0,0.02673257]
[1761927682627,0.1817686,110030.0,110020.0,0.05127257]
[1761927683025,0.1817686,110030.0,110020.0,0.23305769]
[1761927683468,0.1817686,110030.0,110020.0,0.23440569]
[1761927684594,3.53601249,110040.0,110020.0,0.23440569]
[1761927684801,3.0,110030.0,110020.0,0.21867312]
[1761927685000,3.0,110030.0,110020.0,0.19413312]
[1761927685247,0.53601249,110040.0,110020.0,0.22059312]
[1761927685454,3.0,110030.0,110020.0,0.20481312]
[1761927685661,3.0,110030.0,110020.0,0.19381312]
[1761927685870,0.01425982,110040.0,110030.0,0.1817686]
[1761927686074,3.0,110040.0,110030.0,0.2210886]
[1761927686509,3.001,110040.0,110030.0,0.2210886]
[1761927686717,0.001,110040.0,110030.0,0.2710727]
[1761927686925,0.00082454,110060.0,110040.0,0.18173602]
[1761927687132,3.00082454,110060.0,110050.0,0.19751557]
[1761927687350,0.19944116,110060.0,110050.0,0.23073557]
[1761927687972,0.21484116,110060.0,110050.0,0.02646]
[1761927688178,0.21484116,110060.0,110050.0,0.20819557]
[1761927688351,0.1825436,110060.0,110050.0,0.23178369]
[1761927688793,0.1825436,110060.0,110050.0,0.05004812]
[1761927688968,0.1979436,110060.0,110050.0,0.02650812]
[1761927689225,0.1835436,110060.0,110050.0,0.05004812]
[1761927689456,0.19197996,110060.0,110050.0,0.05004812]
[1761927689671,0.2104172,110060.0,110050.0,0.23178369]
[1761927689877,0.02969814,110060.0,110050.0,0.23978369]
[1761927690090,0.0102609,110060.0,110050.0,0.23978369]
[1761927690311,0.00182454,110060.0,110050.0,0.28193566]
[1761927690518,0.00182454,110060.0,110050.0,1.03903274]
[1761927692076,0.00082454,110060.0,110050.0,1.06721502]
[1761927692296,0.00282454,110060.0,110050.0,1.08021502]
[1761927692724,0.00282454,110060.0,110050.0,0.29476779]
[1761927693150,0.00282454,110060.0,110050.0,0.24578369]
[1761927693578,0.1845436,110060.0,110050.0,0.06404812]
[1761927695616,0.1999436,110060.0,110050.0,0.04050812]
[1761927696027,0.1845436,110060.0,110050.0,0.06404812]
[1761927696628,0.1845436,110060.0,110050.0,0.24578369]
[1761927698221,0.00282454,110060.0,110050.0,0.24578369]
[1761927698571,0.00282454,110060.0,110050.0,0.29576779]
[1761927699566,0.00282454,110060.0,110050.0,0.24578369]
[1761927700856,0.00282454,110060.0,110050.0,0.29576779]
[1761927702597,0.00282454,110060.0,110050.0,1.04503274]
[1761927702815,0.00282454,110060.0,110050.0,1.13485175]
[1761927703026,0.00282454,110060.0,110050.0,0.3855868]
[1761927703455,0.00282454,110060.0,110050.0,0.06404812]
[1761927703456,0.1845436,110060.0,110050.0,0.06404812]
[1761927704117,0.1845436,110060.0,110050.0,0.24578369]
[1761927704321,0.1845436,110060.0,110050.0,0.06404812]
[1761927704524,0.1845436,110060.0,110050.0,0.29576779]
[1761927704525,0.00282454,110060.0,110050.0,0.29576779]
[1761927705402,0.1845436,110060.0,110050.0,0.29576779]
[1761927706688,0.1845436,110060.0,110050.0,0.24578369]
[1761927707195,0.1845436,110060.0,110050.0,0.06404812]
[1761927707409,0.1845436,110060.0,110050.0,0.05904812]
[1761927707621,0.2260036,110060.0,110050.0,0.01404812]
[1761927707822,0.2010036,110060.0,110050.0,0.02981812]
[1761927708234,0.1845436,110060.0,110050.0,0.02981812]
[1761927708441,0.1845436,110060.0,110050.0,0.05404812]
[1761927708619,0.1825436,110060.0,110050.0,0.22278369]
[1761927708849,0.1825436,110060.0,110050.0,0.04104812]
[1761927709029,0.1825436,110060.0,110050.0,0.04204812]
[1761927709456,0.1825436,110060.0,110050.0,0.04004812]
[1761927709869,0.1835436,110060.0,110050.0,0.04604812]
[1761927710281,0.1835436,110060.0,110050.0,0.27776779]
[1761927710734,0.00182454,110060.0,110050.0,0.27776779]
[1761927710939,0.00182454,110060.0,110050.0,0.32428775]
[1761927711153,0.00182454,110060.0,110050.0,0.27776779]
[1761927711364,0.00182454,110060.0,110050.0,1.02703274]
[1761927712004,0.00082454,110060.0,110050.0,0.27276779]
[1761927712138,0.00182454,110060.0,110050.0,0.28276779]
[1761927712547,0.00182454,110060.0,110050.0,0.32288722]
[1761927712976,0.00182454,110060.0,110050.0,0.28476779]
[1761927714590,0.00182454,110060.0,110050.0,1.07021502]
[1761927715024,0.00182454,110060.0,110050.0,1.41021502]
[1761927717844,0.00182454,110060.0,110050.0,1.42021501]
[1761927718253,0.00182454,110060.0,110050.0,1.41021502]
[1761927718462,0.00182454,110060.0,110050.0,1.50003403]
[1761927719621,0.00182454,110060.0,110050.0,0.75076908]
[1761927720277,0.00182454,110060.0,110050.0,1.50003403]
[1761927720796,0.00182454,110060.0,110050.0,1.49503403]
[1761927721231,0.00182454,110060.0,110050.0,0.74576908]
[1761927721454,0.00182454,110060.0,110050.0,1.49503403]
[1761927721667,0.00182454,110060.0,110050.0,0.3695868]
[1761927722887,0.1835436,110060.0,110050.0,0.04804812]
[1761927723826,0.1835436,110060.0,110050.0,0.22978369]
[1761927724333,0.00182454,110060.0,110050.0,0.22978369]
[1761927724706,0.00182454,110060.0,110050.0,0.27976779]
[1761927725531,0.00182454,110060.0,110050.0,0.76356171]
[1761927725761,0.1835436,110060.0,110050.0,0.27976779]
[1761927725963,0.1835436,110060.0,110050.0,0.22978369]
[1761927726186,0.1835436,110060.0,110050.0,0.04804812]
[1761927726398,0.1835436,110060.0,110050.0,0.02381812]
[1761927726609,0.2000036,110060.0,110050.0,0.02381812]
[1761927727253,0.20844866,110060.0,110050.0,0.02877]
[1761927727679,0.22269962,110060.0,110050.0,0.02877]
[1761927728076,0.20623962,110060.0,110050.0,0.053]
[1761927728279,0.19779456,110060.0,110050.0,0.02877]
[1761927728728,0.19779456,110060.0,110050.0,0.053]
[1761927729714,0.19779456,110060.0,110050.0,0.02877]
[1761927730134,1.09094658,110060.0,110050.0,0.013]
[1761927730668,1.09294658,110060.0,110050.0,0.013]
[1761927730872,4.09294658,110060.0,110050.0,0.013]
[1761927731053,4.08994658,110060.0,110050.0,0.002]
[1761927731455,4.09194658,110060.0,110050.0,0.003]
[1761927731685,4.08994658,110060.0,110050.0,0.003]
[1761927731874,4.09194658,110060.0,110050.0,0.001]
[1761927732090,4.08994658,110060.0,110050.0,0.001]
[1761927733166,4.09194658,110060.0,110050.0,0.001]
[1761927733363,4.08994658,110060.0,110050.0,0.001]
[1761927733553,4.09194658,110060.0,110050.0,0.001]
[1761927733709,4.08994658,110060.0,110050.0,0.001]
[1761927734617,0.18175209,110040.0,110030.0,0.02445129]
[1761927734839,0.18183954,110040.0,110030.0,0.02445129]
[1761927735061,0.19829954,110040.0,110030.0,0.01599129]
[1761927735516,0.18183954,110040.0,110030.0,0.04022129]
[1761927736010,0.19184555,110040.0,110030.0,0.02099129]
[1761927736231,0.20830555,110040.0,110030.0,0.02099129]
[1761927736449,0.19184555,110040.0,110030.0,0.02099129]
[1761927736669,0.19184555,110040.0,110030.0,0.04379129]
[1761927736893,0.18183954,110040.0,110030.0,0.22555989]
[1761927737325,0.18183954,110040.0,110030.0,0.04379129]
[1761927738434,0.18183954,110040.0,110030.0,0.22555989]
[1761927739118,8.745e-05,110040.0,110030.0,0.22555989]
[1761927739361,0.18183954,110040.0,110030.0,0.04379129]
[1761927739605,0.18183954,110040.0,110030.0,0.00522129]
[1761927739606,0.71534389,110040.0,110030.0,0.00522129]
[1761927739834,4.04547346,110040.0,110030.0,0.00522129]
[1761927740061,4.05389969,110040.0,110030.0,0.00522129]
[1761927740290,4.07331276,110040.0,110030.0,0.00522129]
[1761927740523,4.05389969,110040.0,110030.0,0.00522129]
[1761927740741,4.06377012,110040.0,110030.0,0.00122129]
[1761927741205,4.05534389,110040.0,110030.0,0.00122129]
[1761927741452,4.05734389,110040.0,110030.0,0.00122129]
[1761927741671,4.05734389,110040.0,110030.0,0.00022129]
[1761927742166,4.05634389,110040.0,110030.0,0.00022129]
[1761927742381,4.06308389,110040.0,110030.0,0.00022129]
[1761927742825,4.06508389,110040.0,110030.0,0.00022129]
[1761927743271,4.06308389,110040.0,110030.0,0.00022129]
[1761927744142,4.06508389,110040.0,110030.0,0.00022129]
[1761927744370,3.57928997,110040.0,110030.0,0.00022129]
[1761927745295,4.06308389,110040.0,110030.0,0.00022129]
[1761927746924,3.57928997,110040.0,110030.0,0.00022129]
[1761927747165,3.55557997,110040.0,110030.0,0.02822129]
[1761927748037,3.55357997,110040.0,110030.0,0.02822129]
[1761927748496,3.55357997,110040.0,110030.0,0.02922129]
[1761927749743,3.567834,110040.0,110030.0,0.02922129]
[1761927750763,4.07533792,110040.0,110030.0,0.00122129]
[1761927751697,4.55913184,110040.0,110030.0,0.00122129]
[1761927751911,4.07533792,110040.0,110030.0,0.00122129]
[1761927752346,4.08576208,110040.0,110030.0,0.00122129]
[1761927752766,4.08476208,110040.0,110030.0,0.00122129]
[1761927753012,4.08476208,110040.0,110030.0,0.00022129]
[1761927753228,4.08776208,110040.0,110030.0,0.00022129]
[1761927753423,4.12202165,110040.0,110030.0,0.00022129]
[1761927753736,4.12402165,110040.0,110030.0,0.00022129]
[1761927754435,4.12202165,110040.0,110030.0,0.00022129]
[1761927754775,4.12402165,110040.0,110030.0,0.00022129]
[1761927754975,4.60781557,110040.0,110030.0,0.00022129]
[1761927755231,4.12402165,110040.0,110030.0,0.00022129]
[1761927756239,4.12202165,110040.0,110030.0,0.00022129]
[1761927757581,3.91720283,110040.0,110030.0,0.00022129]
[1761927757778,4.58274884,110040.0,110030.0,0.00022129]
[1761927757987,4.58474884,110040.0,110030.0,0.00022129]
[1761927760648,4.60895711,110040.0,110030.0,0.00022129]
[1761927760877,4.60695711,110040.0,110030.0,0.00022129]
[1761927761299,4.58474884,110040.0,110030.0,0.00022129]
[1761927761860,3.617161,110040.0,110030.0,0.00022129]
[1761927762211,4.58474884,110040.0,110030.0,0.00022129]
[1761927762739,3.5217686,110030.0,110020.0,0.001348]
[1761927762965,4.10391625,110030.0,110020.0,0.001348]
[1761927763366,4.47286345,110030.0,110020.0,0.001348]
[1761927764014,4.50018459,110030.0,110020.0,0.002348]
[1761927765118,4.49818459,110030.0,110020.0,0.002348]